[Event "11th LCC Rapid 2019"]
[Site "London"]
[Date "2019.12.07"]
[Round "1.1"]
[White "Gordon, Stephen J"]
[Black "Jezierski, Colum"]
[Result "1-0"]
[WhiteElo "2495"]
[BlackElo "1908"]
[PlyCount "81"]
[EventDate "2019.12.08"]
[EventType "swiss"]
[EventCountry "ENG"]
[TimeControl "15+10"]
[WhiteClock "0:02:33"]
[BlackClock "0:05:01"]

1. c4 {[%emt 0:00:00]} Nf6 {[%emt 0:00:00]} 2. Nc3 {[%emt 0:00:00]} g6 {[%emt 0:00:00]} 3. e4 {[%emt 0:00:00]} d6 {[%emt 0:00:00]} 4. d4 {[%emt 0:00:00]} Bg7 {[%emt 0:00:00]} 5. h3 {[%emt 0:00:00]} c5 {[%emt 0:00:00]} 6. dxc5 {[%emt 0:00:00]} Qa5 {[%emt 0:00:00]} 7. Bd2 {[%emt 0:00:00]} Qxc5 {[%emt 0:00:00]} 8. Nf3 {[%emt 0:00:00]} O-O {[%emt 0:00:00]} 9. Be2 {[%emt 0:00:00]} Nc6 {[%emt 0:00:00]} 10. O-O {[%emt 0:00:00]} Nd4 {[%emt 0:00:00]} 11. Nxd4 {[%emt 0:00:00]} Qxd4 {[%emt 0:00:00]} 12. Qc2 {[%emt 0:00:00]} Be6 {[%emt 0:00:00]} 13. Be3 {[%emt 0:00:00]} Qe5 {[%emt 0:00:00]} 14. Rac1 {[%emt 0:00:00]} Qa5 {[%emt 0:00:00]} 15. b3 {[%emt 0:00:00]} Rfe8 {[%emt 0:00:00]} 16. Qd2 {[%emt 0:00:00]} Rac8 {[%emt 0:00:00]} 17. Bd3 {[%emt 0:00:00]} Nd7 {[%emt 0:00:00]} 18. f4 {[%emt 0:00:00]} Nc5 {[%emt 0:00:00]} 19. Bb1 {[%emt 0:00:00]} f6 {[%emt 0:00:00]} 20. Qf2 {[%emt 0:00:00]} Bf7 {[%emt 0:00:00]} 21. Rfd1 {[%emt 0:00:00]} b6 {[%emt 0:00:00]} 22. Nd5 {[%emt 0:00:00]} Nd7 {[%emt 0:00:00]} 23. Bd4 {[%emt 0:00:00]} b5 {[%emt 0:00:00]} 24. cxb5 {[%emt 0:00:00]} Rxc1 {[%emt 0:00:00]} 25. Rxc1 {[%emt 0:00:00]} Bxd5 {[%emt 0:00:00]} 26. exd5 {[%emt 0:00:00]} Qxb5 {[%emt 0:00:00]} 27. f5 {[%emt 0:00:00]} Qxd5 {[%emt 0:00:00]} 28. fxg6 {[%emt 0:00:00]} e5 {[%emt 0:00:00]} 29. Bxa7 {[%emt 0:00:00]} e4 {[%emt 0:00:21]} 30. gxh7+ {[%emt 0:00:00]} Kxh7 {[%emt 0:00:01]} 31. Rc7 {[%emt 0:00:00]} Qe6 {[%emt 0:00:13]} 32. Qh4+ {[%emt 0:00:09]} Kg8 {[%emt 0:00:01]} 33. Qxe4 {[%emt 0:00:35]} Qxe4 {[%emt 0:02:22]} 34. Bxe4 {[%emt 0:00:02]} Ne5 {[%emt 0:00:06]} 35. a4 {[%emt 0:00:18]} Kh8 {[%emt 0:00:38]} 36. Bf5 {[%emt 0:00:17]} Kg8 {[%emt 0:00:07]} 37. Rc8 {[%emt 0:00:22]} Rxc8 {[%emt 0:00:07]} 38. Bxc8 {[%emt 0:00:02]} Nd3 {[%emt 0:00:07]} 39. a5 {[%emt 0:00:11]} Kf7 {[%emt 0:00:02]} 40. a6 {[%emt 0:00:06]} Ke7 {[%emt 0:00:17]} 41. Bb6 {[%emt 0:00:02]} 1-0

[Event "11th LCC Rapid 2019"]
[Site "London"]
[Date "2019.12.07"]
[Round "1.2"]
[White "Tombolis, Christopher"]
[Black "Hebden, Mark L"]
[Result "0-1"]
[WhiteElo "1875"]
[BlackElo "2433"]
[PlyCount "96"]
[EventDate "2019.12.08"]
[EventType "swiss"]
[EventCountry "ENG"]
[TimeControl "15+10"]
[WhiteClock "0:04:09"]
[BlackClock "0:00:27"]

1. d4 {[%emt 0:00:00]} Nf6 {[%emt 0:00:00]} 2. c4 {[%emt 0:00:00]} g6 {[%emt 0:00:00]} 3. Nc3 {[%emt 0:00:00]} Bg7 {[%emt 0:00:00]} 4. e4 {[%emt 0:00:00]} d6 {[%emt 0:00:00]} 5. Nf3 {[%emt 0:00:00]} O-O {[%emt 0:00:00]} 6. Be2 {[%emt 0:00:00]} e5 {[%emt 0:00:00]} 7. O-O {[%emt 0:00:00]} Nc6 {[%emt 0:00:00]} 8. d5 {[%emt 0:00:00]} Ne7 {[%emt 0:00:00]} 9. Ne1 {[%emt 0:00:00]} Nd7 {[%emt 0:00:00]} 10. Be3 {[%emt 0:00:00]} f5 {[%emt 0:00:00]} 11. f3 {[%emt 0:00:00]} f4 {[%emt 0:00:00]} 12. Bf2 {[%emt 0:00:00]} g5 {[%emt 0:00:00]} 13. a4 {[%emt 0:00:00]} Ng6 {[%emt 0:00:00]} 14. a5 {[%emt 0:00:00]} Nf6 {[%emt 0:00:00]} 15. c5 {[%emt 0:00:00]} Rf7 {[%emt 0:00:00]} 16. cxd6 {[%emt 0:00:00]} cxd6 {[%emt 0:00:00]} 17. a6 {[%emt 0:00:00]} b6 {[%emt 0:00:00]} 18. Na2 {[%emt 0:00:00]} g4 {[%emt 0:00:00]} 19. fxg4 {[%emt 0:00:00]} Nxe4 {[%emt 0:00:00]} 20. Bd3 {[%emt 0:00:00]} Nc5 {[%emt 0:00:00]} 21. Bxg6 {[%emt 0:00:00]} hxg6 {[%emt 0:00:00]} 22. Nb4 {[%emt 0:00:00]} Qg5 {[%emt 0:00:00]} 23. h3 {[%emt 0:00:00]} e4 {[%emt 0:00:00]} 24. Bd4 {[%emt 0:00:00]} Bd7 {[%emt 0:00:00]} 25. Bxg7 {[%emt 0:00:00]} Kxg7 {[%emt 0:00:00]} 26. Qd4+ {[%emt 0:00:00]} Qe5 {[%emt 0:00:00]} 27. Nec2 {[%emt 0:00:00]} Nb3 {[%emt 0:00:00]} 28. Qxe5+ {[%emt 0:00:00]} dxe5 {[%emt 0:00:00]} 29. Rad1 {[%emt 0:00:00]} Rc8 {[%emt 0:00:00]} 30. Na3 {[%emt 0:00:00]} e3 {[%emt 0:00:00]} 31. Rfe1 {[%emt 0:00:00]} Rc5 {[%emt 0:00:00]} 32. d6 {[%emt 0:00:00]} Be6 {[%emt 0:00:00]} 33. Nd3 {[%emt 0:00:18]} Ra5 {[%emt 0:00:00]} 34. Nb4 {[%emt 0:00:58]} Rc5 {[%emt 0:00:00]} 35. Nd3 {[%emt 0:00:04]} Rd5 {[%emt 0:00:00]} 36. Nc4 {[%emt 0:00:32]} e4 {[%emt 0:00:00]} 37. Nde5 {[%emt 0:00:16]} Rf8 {[%emt 0:00:00]} 38. Rxd5 {[%emt 0:01:42]} Bxd5 {[%emt 0:00:00]} 39. Rd1 {[%emt 0:00:21]} e2 {[%emt 0:00:00]} 40. Re1 {[%emt 0:00:01]} Nd4 {[%emt 0:00:02]} 41. d7 {[%emt 0:01:18]} Rd8 {[%emt 0:01:31]} 42. g3 {[%emt 0:00:48]} f3 {[%emt 0:00:36]} 43. Ne3 {[%emt 0:00:01]} Kf6 {[%emt 0:00:42]} 44. Nxg6 {[%emt 0:00:42]} Kxg6 {[%emt 0:00:07]} 45. Nxd5 {[%emt 0:00:02]} Nc2 {[%emt 0:00:45]} 46. Nf4+ {[%emt 0:00:29]} Kf7 {[%emt 0:00:03]} 47. Kf2 {[%emt 0:00:15]} Nxe1 {[%emt 0:00:17]} 48. Kxe1 {[%emt 0:00:01]} Rxd7 {[%emt 0:00:03]} 0-1

[Event "11th LCC Rapid 2019"]
[Site "London"]
[Date "2019.12.07"]
[Round "1.3"]
[White "Clarke, Brandon Gi"]
[Black "Deaconu, Mihai-Ionut"]
[Result "1-0"]
[WhiteElo "2380"]
[BlackElo "1957"]
[PlyCount "151"]
[EventDate "2019.12.08"]
[EventType "swiss"]
[EventCountry "ENG"]
[TimeControl "15+10"]

1. e4 {[%emt 0:58:54]} e5 {[%emt 0:00:02]} 2. Nf3 {[%emt 0:00:01]} Nc6 {[%emt 0:00:02]} 3. Bb5 a6 {[%emt 0:00:01]} 4. Ba4 {[%emt 0:00:01]} Nf6 {[%emt 0:00:02]} 5. O-O {[%emt 0:00:01]} Be7 {[%emt 0:00:05]} 6. Re1 b5 {[%emt 0:00:02]} 7. Bb3 d6 {[%emt 0:00:02]} 8. c3 O-O {[%emt 0:00:03]} 9. h3 {[%emt 0:00:02]} Nb8 {[%emt 0:00:01]} 10. d4 {[%emt 0:00:01]} Nbd7 {[%emt 0:00:04]} 11. Nbd2 {[%emt 0:00:01]} Bb7 {[%emt 0:00:03]} 12. Bc2 {[%emt 0:00:03]} Re8 {[%emt 0:00:11]} 13. Nf1 {[%emt 0:00:04]} Bf8 {[%emt 0:00:02]} 14. Ng3 {[%emt 0:00:01]} g6 {[%emt 0:00:03]} 15. a4 {[%emt 0:00:02]} Bg7 {[%emt 0:00:40]} 16. Bd3 {[%emt 0:00:03]} c6 {[%emt 0:00:54]} 17. Be3 {[%emt 0:03:39]} Qc7 {[%emt 0:00:11]} 18. Qd2 {[%emt 0:00:07]} Nb6 {[%emt 0:00:04]} 19. b3 {[%emt 0:00:18]} Rad8 {[%emt 0:01:27]} 20. Bh6 {[%emt 0:00:14]} Bh8 {[%emt 0:00:04]} 21. Qg5 {[%emt 0:01:49]} Bc8 {[%emt 0:04:06]} 22. Qh4 {[%emt 0:00:31]} Nbd7 {[%emt 0:01:22]} 23. Bg5 {[%emt 0:00:29]} Re6 {[%emt 0:02:50]} 24. axb5 {[%emt 0:03:22]} axb5 {[%emt 0:00:07]} 25. d5 {[%emt 0:00:21]} Ree8 {[%emt 0:00:04]} 26. Nh2 {[%emt 0:00:31]} cxd5 {[%emt 0:00:44]} 27. Bxb5 {[%emt 0:00:13]} dxe4 {[%emt 0:00:58]} 28. Bxd7 {[%emt 0:01:31]} Nxd7 {[%emt 0:00:07]} 29. Bxd8 {[%emt 0:00:16]} Qxd8 {[%emt 0:00:02]} 30. Qxd8 {[%emt 0:00:24]} Rxd8 31. Nxe4 {[%emt 0:00:06]} Nb6 {[%emt 0:01:31]} 32. Red1 {[%emt 0:01:15]} d5 {[%emt 0:00:03]} 33. Ra7 {[%emt 0:00:26]} Rf8 {[%emt 0:01:51]} 34. Nd6 {[%emt 0:00:27]} Be6 {[%emt 0:00:09]} 35. Nf3 {[%emt 0:00:38]} h6 {[%emt 0:00:08]} 36. Rb7 {[%emt 0:00:29]} Nd7 {[%emt 0:00:06]} 37. b4 {[%emt 0:00:05]} Ra8 {[%emt 0:01:01]} 38. Nb5 {[%emt 0:01:02]} Rd8 {[%emt 0:01:28]} 39. Nc7 {[%emt 0:00:20]} Nf8 {[%emt 0:00:21]} 40. Nxe6 {[%emt 0:00:59]} Nxe6 41. g3 {[%emt 0:00:06]} d4 42. cxd4 {[%emt 0:00:05]} exd4 43. Ne1 {[%emt 0:00:22]} Bf6 {[%emt 0:00:11]} 44. Nd3 {[%emt 0:00:01]} Ng5 {[%emt 0:00:04]} 45. Kg2 {[%emt 0:00:02]} Ne4 {[%emt 0:00:06]} 46. Re1 {[%emt 0:00:10]} Nd6 {[%emt 0:00:19]} 47. Rb6 {[%emt 0:00:16]} Kg7 {[%emt 0:00:02]} 48. Rc1 {[%emt 0:00:13]} Ne4 {[%emt 0:00:35]} 49. Rc7 {[%emt 0:00:12]} Ra8 {[%emt 0:00:14]} 50. Rbb7 {[%emt 0:00:45]} Nd6 {[%emt 0:00:02]} 51. Ra7 {[%emt 0:00:02]} Rxa7 {[%emt 0:00:48]} 52. Rxa7 {[%emt 0:00:02]} Nb5 {[%emt 0:00:03]} 53. Rb7 {[%emt 0:00:13]} Nd6 {[%emt 0:00:01]} 54. Rd7 {[%emt 0:00:02]} Nb5 {[%emt 0:00:02]} 55. Kf3 {[%emt 0:00:10]} Kf8 {[%emt 0:00:03]} 56. Rd5 {[%emt 0:00:56]} Nc3 {[%emt 0:00:05]} 57. Ra5 {[%emt 0:00:13]} Ke7 {[%emt 0:00:07]} 58. h4 {[%emt 0:00:10]} h5 {[%emt 0:00:22]} 59. Nf4 {[%emt 0:00:03]} Kd6 {[%emt 0:00:18]} 60. Ra6+ {[%emt 0:00:28]} Ke7 61. Ra7+ {[%emt 0:00:04]} Ke8 {[%emt 0:00:08]} 62. Ra5 {[%emt 0:00:17]} Kd7 {[%emt 0:00:20]} 63. Nd5 {[%emt 0:00:05]} Nxd5 {[%emt 0:00:06]} 64. Rxd5+ {[%emt 0:00:01]} Kc6 65. Ke4 {[%emt 0:00:04]} Bg7 {[%emt 0:00:11]} 66. b5+ {[%emt 0:00:04]} Kc7 {[%emt 0:00:07]} 67. Kd3 {[%emt 0:00:04]} Kb6 {[%emt 0:00:21]} 68. Kc4 {[%emt 0:00:04]} Kc7 {[%emt 0:00:17]} 69. f3 {[%emt 0:00:07]} Bf6 {[%emt 0:00:15]} 70. Rxd4 {[%emt 0:00:33]} Bxd4 {[%emt 0:00:13]} 71. Kxd4 f6 {[%emt 0:00:01]} 72. Kd5 {[%emt 0:00:08]} g5 {[%emt 0:00:01]} 73. Ke6 {[%emt 0:00:05]} gxh4 {[%emt 0:00:11]} 74. gxh4 {[%emt 0:00:01]} Kb6 {[%emt 0:00:03]} 75. Kxf6 {[%emt 0:00:01]} Kxb5 76. Ke6 {[%emt 0:00:01]} 1-0

[Event "11th LCC Rapid 2019"]
[Site "London"]
[Date "2019.12.07"]
[Round "1.4"]
[White "Titorenko, Kostyantyn"]
[Black "Harvey, Marcus R"]
[Result "0-1"]
[WhiteElo "1772"]
[BlackElo "2412"]
[PlyCount "124"]
[EventDate "2019.12.08"]
[EventType "swiss"]
[EventCountry "ENG"]
[TimeControl "15+10"]
[WhiteClock "0:02:52"]
[BlackClock "0:01:45"]

1. e4 {[%emt 0:00:00]} e6 {[%emt 0:00:00]} 2. Nc3 {[%emt 0:00:00]} d5 {[%emt 0:00:00]} 3. g3 {[%emt 0:00:00]} dxe4 {[%emt 0:00:00]} 4. Nxe4 {[%emt 0:00:00]} Bd7 {[%emt 0:00:00]} 5. Nc3 {[%emt 0:00:00]} Bc6 {[%emt 0:00:00]} 6. Nf3 {[%emt 0:00:00]} Nf6 {[%emt 0:00:00]} 7. Bg2 {[%emt 0:00:00]} Be7 {[%emt 0:00:00]} 8. O-O {[%emt 0:00:00]} O-O {[%emt 0:00:00]} 9. d3 {[%emt 0:00:00]} Nbd7 {[%emt 0:00:00]} 10. a3 {[%emt 0:00:00]} e5 {[%emt 0:00:00]} 11. Re1 {[%emt 0:00:00]} Bd6 {[%emt 0:00:00]} 12. Ng5 {[%emt 0:00:00]} Bxg2 {[%emt 0:00:00]} 13. Kxg2 {[%emt 0:00:00]} c6 {[%emt 0:00:00]} 14. Nge4 {[%emt 0:00:00]} Bc7 {[%emt 0:00:00]} 15. Qf3 {[%emt 0:00:00]} Nxe4 {[%emt 0:00:00]} 16. dxe4 {[%emt 0:00:00]} Qe7 {[%emt 0:00:00]} 17. Be3 {[%emt 0:00:00]} Rfd8 {[%emt 0:00:00]} 18. Rad1 {[%emt 0:00:00]} Nb6 {[%emt 0:00:00]} 19. Ne2 {[%emt 0:00:00]} Nc4 {[%emt 0:00:00]} 20. Bc1 {[%emt 0:00:00]} Ba5 {[%emt 0:00:00]} 21. Rf1 {[%emt 0:00:00]} Bb6 {[%emt 0:00:00]} 22. Ng1 {[%emt 0:00:00]} Bd4 {[%emt 0:00:00]} 23. Qb3 {[%emt 0:00:00]} b5 {[%emt 0:00:00]} 24. Nf3 {[%emt 0:00:00]} Bb6 {[%emt 0:00:00]} 25. Bg5 {[%emt 0:00:00]} f6 {[%emt 0:00:00]} 26. Bc1 {[%emt 0:00:00]} Kh8 {[%emt 0:00:00]} 27. Nd2 {[%emt 0:00:00]} Nd6 {[%emt 0:00:00]} 28. f3 {[%emt 0:01:25]} Rd7 {[%emt 0:00:00]} 29. c4 {[%emt 0:00:05]} Rad8 {[%emt 0:00:00]} 30. Qc2 {[%emt 0:00:02]} Nxc4 {[%emt 0:00:00]} 31. Nxc4 {[%emt 0:00:06]} bxc4 {[%emt 0:00:00]} 32. Rxd7 {[%emt 0:00:09]} Qxd7 {[%emt 0:00:00]} 33. Qxc4 {[%emt 0:00:11]} Qd3 {[%emt 0:00:24]} 34. Qxd3 {[%emt 0:00:58]} Rxd3 {[%emt 0:00:02]} 35. f4 {[%emt 0:00:33]} exf4 {[%emt 0:01:12]} 36. gxf4 {[%emt 0:00:26]} Kg8 {[%emt 0:00:11]} 37. Re1 {[%emt 0:00:34]} Kf7 {[%emt 0:00:08]} 38. Re2 {[%emt 0:00:24]} Bd4 {[%emt 0:00:06]} 39. b4 {[%emt 0:00:14]} f5 {[%emt 0:01:19]} 40. exf5 {[%emt 0:00:13]} Kf6 {[%emt 0:00:06]} 41. Rd2 {[%emt 0:00:01]} Rxd2+ {[%emt 0:00:02]} 42. Bxd2 {[%emt 0:00:01]} Kxf5 {[%emt 0:00:01]} 43. Kf3 {[%emt 0:00:04]} a6 {[%emt 0:00:01]} 44. Bc1 {[%emt 0:00:19]} Bc3 {[%emt 0:00:07]} 45. h3 {[%emt 0:00:02]} h6 {[%emt 0:00:36]} 46. Ke3 {[%emt 0:00:01]} Kg6 {[%emt 0:00:09]} 47. Kd3 {[%emt 0:00:11]} Be1 {[%emt 0:00:02]} 48. Bb2 {[%emt 0:00:10]} Bh4 {[%emt 0:00:23]} 49. Ke4 {[%emt 0:00:05]} Be7 {[%emt 0:00:38]} 50. f5+ {[%emt 0:00:02]} Kf7 {[%emt 0:00:02]} 51. Be5 {[%emt 0:00:10]} g5 {[%emt 0:00:13]} 52. Bd4 {[%emt 0:00:33]} h5 {[%emt 0:00:05]} 53. Be5 {[%emt 0:00:10]} Bf6 {[%emt 0:00:05]} 54. Bd6 {[%emt 0:00:16]} Bb2 {[%emt 0:00:09]} 55. a4 {[%emt 0:00:06]} Ba3 {[%emt 0:00:09]} 56. Bc5 {[%emt 0:00:15]} a5 {[%emt 0:00:43]} 57. Be3 {[%emt 0:00:27]} axb4 {[%emt 0:00:12]} 58. Bxg5 {[%emt 0:00:01]} b3 {[%emt 0:00:09]} 59. Kd3 {[%emt 0:00:01]} c5 {[%emt 0:00:23]} 60. Kc3 {[%emt 0:00:25]} c4 {[%emt 0:00:04]} 61. a5 {[%emt 0:00:08]} Bb4+ {[%emt 0:00:01]} 62. Kxb4 {[%emt 0:00:02]} b2 {[%emt 0:00:01]} 0-1

[Event "11th LCC Rapid 2019"]
[Site "London"]
[Date "2019.12.07"]
[Round "1.5"]
[White "Haydon, David L"]
[Black "Conway, Paul Bernard"]
[Result "1-0"]
[WhiteElo "2294"]
[BlackElo "1837"]
[PlyCount "51"]
[EventDate "2019.12.08"]
[EventType "swiss"]
[EventCountry "ENG"]
[TimeControl "15+10"]
[WhiteClock "0:03:06"]
[BlackClock "0:10:47"]

1. Nf3 {[%emt 0:00:00]} Nf6 {[%emt 0:00:00]} 2. g3 {[%emt 0:00:00]} g6 {[%emt 0:00:00]} 3. Bg2 {[%emt 0:00:00]} Bg7 {[%emt 0:00:00]} 4. O-O {[%emt 0:00:00]} O-O {[%emt 0:00:00]} 5. c4 {[%emt 0:00:00]} c5 {[%emt 0:00:00]} 6. Nc3 {[%emt 0:00:00]} Nc6 {[%emt 0:00:00]} 7. d4 {[%emt 0:00:00]} cxd4 {[%emt 0:00:00]} 8. Nxd4 {[%emt 0:00:00]} Nxd4 {[%emt 0:00:00]} 9. Qxd4 {[%emt 0:00:00]} d6 {[%emt 0:00:00]} 10. b3 {[%emt 0:00:00]} Qa5 {[%emt 0:00:00]} 11. Bb2 {[%emt 0:00:00]} Nd7 {[%emt 0:00:00]} 12. Qd2 {[%emt 0:00:00]} Rb8 {[%emt 0:00:00]} 13. Rfd1 {[%emt 0:00:00]} Kh8 {[%emt 0:00:00]} 14. Qe3 {[%emt 0:00:00]} a6 {[%emt 0:00:00]} 15. Rd5 {[%emt 0:00:00]} Qd8 {[%emt 0:00:00]} 16. h4 {[%emt 0:00:00]} b6 {[%emt 0:00:00]} 17. Rd2 {[%emt 0:00:00]} Bb7 {[%emt 0:00:00]} 18. Bxb7 {[%emt 0:00:00]} Rxb7 {[%emt 0:00:00]} 19. Nd5 {[%emt 0:00:00]} e6 {[%emt 0:00:00]} 20. Bxg7+ {[%emt 0:00:00]} Kxg7 {[%emt 0:00:00]} 21. Nc3 {[%emt 0:00:00]} Nf6 {[%emt 0:00:00]} 22. Rad1 {[%emt 0:00:00]} Rd7 {[%emt 0:00:00]} 23. Ne4 {[%emt 0:00:00]} Nxe4 {[%emt 0:00:00]} 24. Qxe4 {[%emt 0:00:00]} Qc7 {[%emt 0:00:18]} 25. Rxd6 {[%emt 0:00:00]} Rfd8 {[%emt 0:01:01]} 26. Qd4+ {[%emt 0:00:00]} 1-0

[Event "11th LCC Rapid 2019"]
[Site "London"]
[Date "2019.12.07"]
[Round "1.6"]
[White "Watson, Jacob"]
[Black "Cordes, Hans-Joerg"]
[Result "0-1"]
[WhiteElo "1922"]
[BlackElo "2207"]
[PlyCount "108"]
[EventDate "2019.12.08"]
[EventType "swiss"]
[EventCountry "ENG"]
[TimeControl "15+10"]
[WhiteClock "0:04:36"]
[BlackClock "0:00:38"]

1. d4 {[%emt 0:00:00]} Nf6 {[%emt 0:00:00]} 2. Nf3 {[%emt 0:00:00]} e6 {[%emt 0:00:00]} 3. e3 {[%emt 0:00:00]} c5 {[%emt 0:00:00]} 4. Bd3 {[%emt 0:00:00]} b6 {[%emt 0:00:00]} 5. Nbd2 {[%emt 0:00:00]} Ba6 {[%emt 0:00:00]} 6. O-O {[%emt 0:00:00]} Bxd3 {[%emt 0:00:00]} 7. cxd3 {[%emt 0:00:00]} Nc6 {[%emt 0:00:00]} 8. Nb3 {[%emt 0:00:00]} a5 {[%emt 0:00:00]} 9. dxc5 {[%emt 0:00:00]} bxc5 {[%emt 0:00:00]} 10. d4 {[%emt 0:00:00]} c4 {[%emt 0:00:00]} 11. Nc5 {[%emt 0:00:00]} Bxc5 {[%emt 0:00:00]} 12. dxc5 {[%emt 0:00:00]} Qe7 {[%emt 0:00:00]} 13. Qd6 {[%emt 0:00:00]} Ne4 {[%emt 0:00:00]} 14. Qxe7+ {[%emt 0:00:00]} Kxe7 {[%emt 0:00:00]} 15. Nd2 {[%emt 0:00:00]} Nxc5 {[%emt 0:00:00]} 16. Nxc4 {[%emt 0:00:00]} d5 {[%emt 0:00:00]} 17. Na3 {[%emt 0:00:00]} a4 {[%emt 0:00:00]} 18. Bd2 {[%emt 0:00:00]} Ne4 {[%emt 0:00:00]} 19. Bc3 {[%emt 0:00:00]} Nxc3 {[%emt 0:00:00]} 20. bxc3 {[%emt 0:00:00]} Na5 {[%emt 0:00:00]} 21. Rab1 {[%emt 0:00:00]} Rab8 {[%emt 0:00:00]} 22. Rb4 {[%emt 0:00:00]} Nc6 {[%emt 0:00:00]} 23. Rbb1 {[%emt 0:00:00]} Ne5 {[%emt 0:00:00]} 24. h3 {[%emt 0:00:00]} Rhc8 {[%emt 0:00:00]} 25. Rb4 {[%emt 0:00:00]} Nc6 {[%emt 0:01:17]} 26. Rxa4 {[%emt 0:00:24]} Ra8 {[%emt 0:00:01]} 27. Rxa8 {[%emt 0:00:12]} Rxa8 {[%emt 0:00:01]} 28. Nb5 {[%emt 0:00:26]} Rxa2 {[%emt 0:00:06]} 29. Nd4 {[%emt 0:00:13]} Ne5 {[%emt 0:00:07]} 30. Rb1 {[%emt 0:00:11]} Nd3 {[%emt 0:00:25]} 31. Rb7+ {[%emt 0:00:11]} Kf6 {[%emt 0:00:02]} 32. f4 {[%emt 0:00:43]} Nc5 {[%emt 0:00:16]} 33. Rc7 {[%emt 0:00:21]} Nd3 {[%emt 0:00:43]} 34. Nf3 {[%emt 0:00:34]} h6 {[%emt 0:00:15]} 35. g4 {[%emt 0:00:23]} g5 {[%emt 0:00:03]} 36. fxg5+ {[%emt 0:00:42]} hxg5 {[%emt 0:00:01]} 37. c4 {[%emt 0:00:05]} Rc2 {[%emt 0:00:03]} 38. h4 {[%emt 0:00:55]} gxh4 {[%emt 0:00:03]} 39. g5+ {[%emt 0:00:07]} Kg6 {[%emt 0:00:03]} 40. Rc8 {[%emt 0:00:10]} Rxc4 {[%emt 0:00:07]} 41. Rg8+ {[%emt 0:00:23]} Kh7 {[%emt 0:00:02]} 42. Rf8 {[%emt 0:00:20]} Kg7 {[%emt 0:00:01]} 43. Ra8 {[%emt 0:00:13]} Rg4+ {[%emt 0:00:14]} 44. Kh2 {[%emt 0:00:14]} Nf2 {[%emt 0:00:08]} 45. Ra7 {[%emt 0:00:13]} h3 {[%emt 0:00:04]} 46. Ne1 {[%emt 0:00:18]} Rxg5 {[%emt 0:00:01]} 47. Ra2 {[%emt 0:00:03]} Ng4+ {[%emt 0:00:06]} 48. Kxh3 {[%emt 0:00:10]} Nxe3 {[%emt 0:00:01]} 49. Re2 {[%emt 0:00:12]} Nf5 {[%emt 0:00:01]} 50. Kh2 {[%emt 0:00:17]} Kf6 {[%emt 0:00:02]} 51. Nf3 {[%emt 0:00:06]} Rh5+ {[%emt 0:00:05]} 52. Kg1 {[%emt 0:00:10]} Nd6 {[%emt 0:00:09]} 53. Nd2 {[%emt 0:00:16]} e5 {[%emt 0:00:06]} 54. Nb3 {[%emt 0:00:05]} Ne4 {[%emt 0:00:06]} 0-1

[Event "11th LCC Rapid 2019"]
[Site "London"]
[Date "2019.12.07"]
[Round "1.7"]
[White "Fernandez, Michael"]
[Black "Clarke, Connor"]
[Result "1-0"]
[WhiteElo "2186"]
[BlackElo "1704"]
[PlyCount "95"]
[EventDate "2019.12.08"]
[EventType "swiss"]
[EventCountry "ENG"]
[TimeControl "15+10"]
[WhiteClock "0:01:41"]
[BlackClock "0:02:03"]

1. c4 {[%emt 0:00:00]} e5 {[%emt 0:00:00]} 2. g3 {[%emt 0:00:00]} Nf6 {[%emt 0:00:00]} 3. Bg2 {[%emt 0:00:00]} d6 {[%emt 0:00:00]} 4. Nc3 {[%emt 0:00:00]} Be7 {[%emt 0:00:00]} 5. e4 {[%emt 0:00:00]} O-O {[%emt 0:00:00]} 6. Nge2 {[%emt 0:00:00]} Be6 {[%emt 0:00:00]} 7. b3 {[%emt 0:00:00]} Nc6 {[%emt 0:00:00]} 8. O-O {[%emt 0:00:00]} Qd7 {[%emt 0:00:00]} 9. d4 {[%emt 0:00:00]} exd4 {[%emt 0:00:00]} 10. Nxd4 {[%emt 0:00:00]} Nxd4 {[%emt 0:00:00]} 11. Qxd4 {[%emt 0:00:00]} Bh3 {[%emt 0:00:00]} 12. Bb2 {[%emt 0:00:00]} Bxg2 {[%emt 0:00:00]} 13. Kxg2 {[%emt 0:00:00]} Qg4 {[%emt 0:00:00]} 14. h3 {[%emt 0:00:00]} Qg6 {[%emt 0:00:00]} 15. f4 {[%emt 0:00:00]} Nd7 {[%emt 0:00:00]} 16. f5 {[%emt 0:00:00]} Bf6 {[%emt 0:00:00]} 17. Qd1 {[%emt 0:00:00]} Qh6 {[%emt 0:00:00]} 18. h4 {[%emt 0:00:00]} Bxc3 {[%emt 0:00:00]} 19. Bxc3 {[%emt 0:00:00]} Nc5 {[%emt 0:00:00]} 20. Qf3 {[%emt 0:00:00]} Rae8 {[%emt 0:00:00]} 21. f6 {[%emt 0:00:00]} gxf6 {[%emt 0:00:00]} 22. Rae1 {[%emt 0:00:00]} Re6 {[%emt 0:00:35]} 23. Bxf6 {[%emt 0:00:00]} Nd3 {[%emt 0:01:07]} 24. Qxd3 {[%emt 0:00:00]} Rxf6 {[%emt 0:00:01]} 25. Qd4 {[%emt 0:00:00]} Rg6 {[%emt 0:00:36]} 26. e5 {[%emt 0:00:00]} dxe5 {[%emt 0:00:11]} 27. Rxe5 {[%emt 0:00:28]} Qg7 {[%emt 0:00:48]} 28. Qe3 {[%emt 0:00:35]} Rd8 {[%emt 0:00:29]} 29. Re7 {[%emt 0:01:19]} Rgd6 {[%emt 0:00:49]} 30. Qf3 {[%emt 0:01:36]} Rd2+ {[%emt 0:00:20]} 31. Kh3 {[%emt 0:00:16]} R2d3 {[%emt 0:00:06]} 32. Qxf7+ {[%emt 0:00:19]} Qxf7 {[%emt 0:00:01]} 33. Rfxf7 {[%emt 0:00:02]} h5 {[%emt 0:00:21]} 34. Rg7+ {[%emt 0:00:12]} Kf8 {[%emt 0:00:09]} 35. Ref7+ {[%emt 0:00:02]} Ke8 {[%emt 0:00:00]} 36. Rxc7 {[%emt 0:00:01]} Kf8 {[%emt 0:00:03]} 37. Rcf7+ {[%emt 0:00:02]} Ke8 {[%emt 0:00:01]} 38. Rxb7 {[%emt 0:00:01]} Kf8 {[%emt 0:00:01]} 39. Rbf7+ {[%emt 0:00:02]} Ke8 {[%emt 0:00:00]} 40. Rxa7 {[%emt 0:00:01]} Kf8 {[%emt 0:00:01]} 41. Rh7 {[%emt 0:00:13]} Kg8 {[%emt 0:00:02]} 42. Rxh5 {[%emt 0:00:02]} Rd2 {[%emt 0:00:03]} 43. Rg5+ {[%emt 0:00:05]} Kf8 {[%emt 0:00:01]} 44. Kg4 {[%emt 0:00:06]} R2d4+ {[%emt 0:00:04]} 45. Kh5 {[%emt 0:00:03]} R4d6 {[%emt 0:00:04]} 46. Rg6 {[%emt 0:00:13]} Rd3 {[%emt 0:00:04]} 47. Kh6 {[%emt 0:00:06]} Re3 {[%emt 0:00:27]} 48. Kh7 {[%emt 0:00:28]} 1-0